[Event "New York Spring IM-C 2022"]
[Site "New York"]
[Date "2022.04.15"]
[Round "1.1"]
[White "Rozman, Levy"]
[Black "Singh, Hersh"]
[Result "1-0"]
[ECO "D00"]
[WhiteElo "2334"]
[BlackElo "2084"]
[Annotator "TA"]
[PlyCount "109"]
[EventDate "2022.04.14"]
[EventType "tourn"]
[EventCountry "USA"]
[SourceTitle "playchess.com"]
[Source "ChessBase"]
[SourceQuality "1"]
[TimeControl "5400+30"]

{[%evp 9,109,-3,59,46,91,0,9,0,0,0,0,0,20,3,18,0,0,0,0,0,0,-166,-174,-166,-4,-5,-7,-4,8,17,35,35,38,34,34,36,33,38,38,33,59,35,62,54,56,27,65,54,88,88,88,88,88,88,88,88,88,88,177,135,202,202,202,202,416,369,336,262,239,225,2107,1079,1970,953,9295,9217,6993,7716,4353,303,11144,10375,29955,11029,29963,29963,12841,5081,29971,29970,29974,29975,29975,29976,29976,29977,29977,29978,29982,29983,29983,29984]} 1. d4 {[%emt 0:00:10]} Nf6 {[%emt 0:00:12]} 2. Nc3 {[%emt 0:00:41]} d5 {[%emt 0:00:06]} 3. Bf4 {[%emt 0:00:07]} c5 {[%emt 0:00:14]} 4. e4 {[%emt 0:00:58]} dxe4 {[%emt 0:05:32]} 5. dxc5 {[%emt 0:00:46]} Qxd1+ {[%emt 0:06:47]} ({Black should play} 5... Bd7 $11) 6. Rxd1 $14 {[%emt 0:00:06] D00: 1 d4 d5: Unusual lines.} Bd7 {[%emt 0:07:02] [#]} 7. f3 $146 {[%emt 0:07:49] &Bianco is more active.} (7. Nb5 $1 $16 {[%cal Rb5c7] Strongly threatening Nc7+.} Bxb5 8. Bxb5+ Nc6 9. Ne2) ({Predecessor:} 7. Nge2 g6 8. Ng3 Bg7 9. Be2 Nc6 10. O-O O-O 11. Ngxe4 Nxe4 12. Nxe4 Bf5 13. Ng3 Bxc2 {0-1 (37) Fiorito,F (2357)-Golubev,M (2461) Chess.com INT 2022}) 7... Nc6 {[%emt 0:09:54]} 8. Nxe4 {[%emt 0:03:15] The position is equal.} Nxe4 {[%emt 0:00:22]} 9. fxe4 {[%emt 0:00:05]} e5 {[%emt 0:00:55]} 10. Be3 {[%emt 0:00:09]} Nd4 {[%emt 0:03:21]} 11. Bxd4 {[%emt 0:04:27]} exd4 {[%emt 0:00:02]} 12. Rxd4 {[%emt 0:25:31]} Bxc5 {[%emt 0:00:06]} 13. Rd2 {[%emt 0:00:04]} O-O-O {[%emt 0:10:17]} 14. Bc4 {[%emt 0:00:32]} Rhe8 {[%emt 0:02:02]} 15. Bxf7 $2 {[%emt 0:07:31]} (15. Re2 $11) 15... Rxe4+ $19 {[%emt 0:00:17]} 16. Re2 {[%emt 0:04:26]} Bg4 $2 {[%emt 0:20:23] This bishop pair is nice.} (16... Rf4 $19 17. Bb3 Bb5) 17. Nf3 $132 {[%emt 0:01:40][%mdl 2048] White is fighting back} Bxf3 {[%emt 0:06:15]} 18. gxf3 {[%emt 0:00:05]} Red4 {[%emt 0:00:03][%csl Gd8][%cal Rd4d1]} 19. Kf1 $1 {[%emt 0:00:26]} Rd2 {[%emt 0:05:01]} 20. Bc4 {[%emt 0:02:29]} Rd1+ {[%emt 0:06:07]} 21. Kg2 {[%emt 0:01:29]} Rxh1 {[%emt 0:00:42]} 22. Kxh1 $14 {[%emt 0:00:06][%mdl 4096] Endgame KRB-KRB} Rd1+ {[%emt 0:00:04]} 23. Kg2 {[%emt 0:00:05]} Rg1+ {[%emt 0:01:54]} 24. Kh3 {[%emt 0:00:02]} Bd4 {[%emt 0:02:22]} 25. Re7 {[%emt 0:04:16]} Bf6 {[%emt 0:01:00]} 26. Be6+ {[%emt 0:01:02]} Kb8 {[%emt 0:00:22]} 27. Rf7 {[%emt 0:02:20]} Re1 {[%emt 0:01:09]} 28. Bf5 {[%emt 0:01:04]} Re7 {[%emt 0:04:43]} 29. Rxe7 {[%emt 0:04:22]} Bxe7 {[%emt 0:00:02]} 30. Bxh7 $16 {[%emt 0:00:07] KB-KB} Bf6 {[%emt 0:00:02]} 31. b3 {[%emt 0:03:38]} Be5 {[%emt 0:00:03]} 32. Kg2 {[%emt 0:00:40]} Kc7 {[%emt 0:03:18]} 33. h4 {[%emt 0:00:08]} b5 {[%emt 0:00:52] [#]} (33... Kd6 $16) 34. c4 $1 $18 {[%emt 0:00:46]} bxc4 {[%emt 0:00:45]} (34... Kd6 $16 35. cxb5 Kd5) 35. bxc4 {[%emt 0:00:02] aiming for h5.} Kd6 {[%emt 0:00:09] [#]} 36. Kh3 $1 {[%emt 0:00:10] Black must now prevent h5.} Ke6 $2 {[%emt 0:02:55]} (36... Bf4 37. Kg4 Ke5) 37. Kg4 {[%emt 0:00:46]} Kf6 {[%emt 0:00:18]} 38. f4 {[%emt 0:01:18]} Bc7 {[%emt 0:01:39]} 39. Kf3 {[%emt 0:00:18]} g6 $2 {[%emt 0:02:00]} (39... Ba5 40. Ke4 Be1) 40. Bg8 {[%emt 0:00:04]} Kf5 {[%emt 0:00:02]} 41. Bd5 {[%emt 0:01:10]} (41. c5 $142 Bd8 42. c6) 41... Bxf4 {[%emt 0:00:06]} 42. Be4+ {[%emt 0:00:06]} Ke5 {[%emt 0:00:07]} 43. Bxg6 {[%emt 0:00:05]} Bc1 {[%emt 0:00:26]} 44. h5 $2 {[%emt 0:00:45]} (44. Be8 Ba3 45. h5) 44... Kd4 {[%emt 0:00:28]} (44... Bh6 45. Bf7 Bf8) 45. Bf7 {[%emt 0:00:11]} Ke5 {[%emt 0:00:12]} 46. c5 {[%emt 0:00:34][%cal Bc4c5,Bc5c6][%mdl 32] Intending c6 and mate.} a5 {[%emt 0:00:48]} 47. c6 {[%emt 0:00:48]} Kd6 {[%emt 0:00:02] [#]} 48. Bd5 $1 {[%emt 0:00:09][%mdl 512]} a4 {[%emt 0:00:17]} (48... Ke7 49. Kg4) 49. Ke4 {[%emt 0:00:05] White mates.} a3 {[%emt 0:00:03] [#]} 50. Kf5 $1 {[%emt 0:00:08]} Bb2 {[%emt 0:00:25] [#]} 51. Kg6 $1 {[%emt 0:00:19]} Be5 {[%emt 0:00:04]} 52. Be4 {[%emt 0:00:08]} Ke7 {[%emt 0:00:11]} 53. h6 {[%emt 0:00:18]} Bd4 {[%emt 0:00:24]} 54. Kh7 {[%emt 0:00:39]} Be5 {[%emt 0:00:20]} 55. Kg8 {[%emt 0:00:06] Never resign too early!  Weighted Error Value: White=0.42/Black=0.71} 1-0

[Event "New York Spring IM-C 2022"]
[Site "New York"]
[Date "2022.04.15"]
[Round "1.3"]
[White "Dolgitser, Konstantin"]
[Black "Umayan, Vincent"]
[Result "1/2-1/2"]
[ECO "E15"]
[WhiteElo "2199"]
[BlackElo "2043"]
[Annotator "TA"]
[PlyCount "47"]
[EventDate "2022.04.14"]
[EventType "tourn"]
[EventCountry "USA"]
[SourceTitle "playchess.com"]
[Source "ChessBase"]
[SourceQuality "1"]
[TimeControl "5400+30"]

{[%evp 21,47,9,16,0,15,0,23,9,14,16,21,17,31,18,19,0,0,0,0,0,0,0,0,0,0,0,0,0]} 1. d4 {[%emt 0:00:30]} Nf6 {[%emt 0:00:40]} 2. Nf3 {[%emt 0:00:20]} e6 {[%emt 0:00:36]} 3. c4 {[%emt 0:00:09]} b6 {[%emt 0:02:24]} 4. g3 {[%emt 0:00:29]} Ba6 {[%emt 0:00:38]} 5. b3 {[%emt 0:00:17]} Bb4+ {[%emt 0:01:22]} 6. Bd2 {[%emt 0:00:15]} Be7 {[%emt 0:00:31]} 7. Bg2 {[%emt 0:00:59]} d5 {[%emt 0:02:17]} 8. Nc3 {[%emt 0:02:53]} O-O {[%emt 0:03:03]} 9. cxd5 {[%emt 0:02:09]} exd5 {[%emt 0:01:08]} 10. O-O {[%emt 0:00:13]} Bb7 {[%emt 0:04:38]} 11. Ne5 $1 {[%emt 0:06:40][%mdl 4] is currently scoring better than 11.Qc2.} Nbd7 {[%emt 0:09:10]} 12. Bf4 {[%emt 0:07:30] E15: Queen's Indian: 4 g3 sidelines, 4 g3 Ba6 and 4 g3 Bb7 early deviations.} Re8 {[%emt 0:11:45]} 13. a3 {[%emt 0:05:28] [#]} Bd6 $146 {[%emt 0:09:33][%cal Rd7e5]} ({Predecessor:} 13... Nf8 14. b4 Ne6 15. Be3 Ne4 16. Bxe4 dxe4 17. d5 Bf6 18. Nxf7 Qe7 19. dxe6 Bxc3 {0-1 (34) Stefansson,V (2371)-Bosiocic,M (2610) Reykjavik 2021}) 14. Nxd7 {[%emt 0:19:33] White has an edge.} Qxd7 {[%emt 0:00:14]} 15. Bxd6 {[%emt 0:00:08]} Qxd6 {[%emt 0:00:12]} 16. b4 {[%emt 0:01:08]} a5 {[%emt 0:06:48]} 17. Qb3 {[%emt 0:50:19]} Ne4 {[%emt 0:12:52] The position is equal.} 18. Nxe4 {[%emt 0:00:00]} dxe4 {[%emt 0:00:07]} 19. e3 {[%emt 0:00:00]} Bd5 {[%emt 0:03:41]} 20. Qc3 {[%emt 0:00:00]} axb4 {[%emt 0:04:10]} 21. axb4 {[%emt 0:00:00]} h6 {[%emt 0:01:37]} 22. Rfc1 {[%emt 0:00:00][%cal Bf1c1,Bc1a1,Ba1a8][%mdl 32]} Rxa1 {[%emt 0:00:53]} 23. Rxa1 {[%emt 0:00:00]} Ra8 {[%emt 0:00:20]} 24. Rxa8+ {[%emt 0:00:00] Not much happened in this game.  Weighted Error Value: White=0.06 (flawless) /Black=0.05 (flawless)} 1/2-1/2

[Event "New York Spring IM-C 2022"]
[Site "New York"]
[Date "2022.04.15"]
[Round "1.4"]
[White "Antova, Gabriela"]
[Black "Jakovljevic, Vlado"]
[Result "0-1"]
[ECO "D37"]
[WhiteElo "2304"]
[BlackElo "2352"]
[Annotator "TA"]
[PlyCount "106"]
[EventDate "2022.04.14"]
[EventType "tourn"]
[EventCountry "USA"]
[SourceTitle "playchess.com"]
[Source "ChessBase"]
[SourceQuality "1"]
[TimeControl "5400+30"]

{[%evp 22,106,-26,-36,-34,-28,-31,-42,-34,-40,-35,-122,-131,-129,-122,-119,-118,-113,-121,-143,-112,-195,-185,-212,-209,-206,-212,-206,-212,-228,-228,-222,-205,-216,-188,-230,-225,-253,-228,-369,-362,-339,-332,-323,-323,-299,-205,-191,-202,-378,-378,-378,-378,-378,-378,-356,5235,-373,-368,-371,-333,-356,-353,-380,-291,-435,-425,-540,-544,-29956,-29957,-29956,-29960,-29962,-29962,-29962,-29964,-29964,-29963,-29961,-29962,-29967,-29961,-29970,-29971,-10181,-5118]} 1. d4 {[%emt 0:00:01]} d5 {[%emt 0:03:12]} 2. c4 {[%emt 0:00:15]} e6 {[%emt 0:01:13]} 3. Nf3 {[%emt 0:00:26]} Nf6 {[%emt 0:01:32]} 4. Nc3 {[%emt 0:04:15]} Be7 {[%emt 0:01:52]} 5. Bf4 {[%emt 0:01:05]} O-O {[%emt 0:01:10]} 6. e3 {[%emt 0:00:14]} b6 {[%emt 0:01:48]} 7. cxd5 {[%emt 0:00:35]} Nxd5 {[%emt 0:00:58]} 8. Nxd5 {[%emt 0:00:20]} exd5 {[%emt 0:00:25]} 9. Bd3 {[%emt 0:01:12]} c5 {[%emt 0:00:57]} 10. O-O {[%emt 0:01:18]} Nc6 {[%emt 0:09:34]} 11. Rc1 {[%emt 0:02:36]} c4 {[%emt 0:05:22]} 12. Bb1 {[%emt 0:03:27]} Be6 {[%emt 0:00:25] [#] D37: Queen's Gambit Declined: 5 Bf4.} 13. Qe2 $146 {[%emt 0:12:15]} ({Predecessor:} 13. Qa4 Qd7 14. b3 a6 15. bxc4 dxc4 16. Qc2 g6 17. Rfd1 Nb4 18. Qb2 Nd5 19. Ne5 {1-0 (27) Shaposhnikov,E (2557)-Lugovskoy,M (2436) Sochi 2016}) 13... Qd7 {[%emt 0:08:02]} 14. e4 {[%emt 0:19:23]} b5 {[%emt 0:07:32] Black is slightly better.} 15. Rcd1 {[%emt 0:05:11]} Rfe8 {[%emt 0:53:58]} 16. Ng5 {[%emt 0:06:26]} (16. a3 $15) 16... Bxg5 $17 {[%emt 0:00:00]} 17. Bxg5 {[%emt 0:00:10] [#]} Bf5 $1 {[%emt 0:00:00][%cal Rf5e4][%mdl 512]} 18. f3 {[%emt 0:05:13]} f6 {[%emt 0:00:00]} 19. Bh4 dxe4 {[%emt 0:00:00] &Nero is more active.} 20. Bxe4 {[%emt 0:17:13]} Nb4 {[%emt 0:00:00]} ({But not} 20... Nxd4 21. Qf2 Bxe4 22. Rxd4 $16) 21. a3 {[%emt 0:07:08]} (21. Qd2 $17 Bxe4 22. Qxb4) 21... Nd3 {[%emt 0:00:00] Threatens to win with ...Bxe4.} 22. Bf2 {[%emt 0:03:05]} Bxe4 {[%emt 0:00:00]} 23. fxe4 {[%emt 0:00:07]} Qc6 {[%emt 0:00:00]} 24. e5 {[%emt 0:04:27]} fxe5 {[%emt 0:00:00]} 25. dxe5 {[%emt 0:00:07]} Rxe5 $40 {[%emt 0:00:00][%mdl 128] Black is out for blood.} 26. Qg4 {[%emt 0:00:40]} Re4 {[%emt 0:00:00]} 27. Qg3 {[%emt 0:00:32]} Qe6 {[%emt 0:00:00]} 28. h3 {[%emt 0:00:32]} a6 {[%emt 0:00:00]} 29. Ba7 {[%emt 0:05:38]} h6 {[%emt 0:00:00]} 30. b3 {[%emt 0:00:16]} (30. Kh2 $142) 30... Kh7 $19 {[%emt 0:00:00]} 31. bxc4 {[%emt 0:00:16]} bxc4 {[%emt 0:00:00]} ({Stronger than} 31... Rxa7 32. Rxd3 (32. Qxd3 bxc4 33. Qb1 Re7 $17) 32... bxc4 33. Rd6 $17) 32. Qc7 {[%emt 0:00:58]} Rc8 {[%emt 0:00:00][%cal Ba8c8,Bc8c6,Bc6c5][%mdl 32]} 33. Qb7 {[%emt 0:00:28]} Qc6 {[%emt 0:00:00]} 34. Qxc6 {[%emt 0:00:48]} Rxc6 {[%emt 0:00:00]} 35. Rf7 $2 {[%emt 0:00:43] [#]} (35. Rd2) 35... c3 $1 {[%emt 0:00:00]} 36. Rxd3 {[%emt 0:00:19] Black must now prevent Rd1.} c2 {[%emt 0:00:00] Against Rd1} 37. Rf1 {[%emt 0:00:16] Prevents Re1. And now Rc1 would win.} c1=Q {[%emt 0:00:00]} 38. Rxc1 {[%emt 0:00:03]} Rc5 {[%emt 0:11:30][%mdl 8192]} 39. Rc2 $4 {[%mdl 8192]} Rxc2 {[%emt 0:00:00][%mdl 4096] Endgame KRR-KRB} 40. Kh2 {[%emt 0:00:56]} g6 {[%emt 0:01:00][%cal Bg7g6,Bg6g5,Bg5h4][%mdl 32]} 41. Bd4 g5 {[%emt 0:00:00]} 42. Bc3 {[%emt 0:01:52]} Re6 {[%emt 0:00:00]} 43. h4 {[%emt 0:00:38]} (43. Ba5 {was worth a try.}) 43... gxh4 {[%emt 0:00:00] Hoping for ...Rce2.} 44. Rd7+ {[%emt 0:00:32]} Kg6 {[%emt 0:00:00]} 45. Bd4 {[%emt 0:00:31]} Rd2 {[%emt 0:00:00]} 46. Rg7+ {[%emt 0:00:11]} Kh5 {[%emt 0:00:00]} 47. Bc3 {[%emt 0:00:27]} Rc2 {[%emt 0:00:00]} 48. Bb4 {[%emt 0:00:14]} Rg6 {[%emt 0:00:00]} 49. Rxg6 {[%emt 0:00:15]} Kxg6 {[%emt 0:00:00]} 50. Kh3 {[%emt 0:00:57]} Kh5 {[%emt 0:00:00]} 51. Be1 {[%emt 0:00:31]} Rb2 {[%emt 0:00:00]} 52. Bb4 {[%emt 0:00:43]} Rb3+ {[%emt 0:00:00]} 53. Kh2 {[%emt 0:00:05]} Kg4 {[%emt 0:00:00] Black used his chance.  Weighted Error Value: White=0.68/Black=0.11 (very precise)} 0-1

[Event "New York Spring IM-C 2022"]
[Site "New York"]
[Date "2022.04.15"]
[Round "2.1"]
[White "Lee, Justin"]
[Black "Jakovljevic, Vlado"]
[Result "1/2-1/2"]
[ECO "E20"]
[WhiteElo "2104"]
[BlackElo "2352"]
[Annotator "TA"]
[PlyCount "60"]
[EventDate "2022.04.14"]
[EventType "tourn"]
[EventCountry "USA"]
[SourceTitle "playchess.com"]
[Source "ChessBase"]
[SourceQuality "1"]
[TimeControl "5400+30"]

{[%evp 9,60,-14,-10,-10,6,-4,11,-53,-67,-53,-38,-68,-59,-66,-14,-27,-26,-17,-11,-25,-33,-34,-36,-26,-25,-26,0,0,0,-31,10,0,0,-25,-16,-18,0,-18,0,-37,0,0,0,-12,0,0,0,0,11,27,33,35,28]} 1. d4 {[%emt 0:00:02][%cal Bd2d4,Bd4d5][%mdl 32]} Nf6 {[%emt 0:08:40]} 2. c4 {[%emt 0:00:05]} e6 {[%emt 0:00:05]} 3. Nc3 {[%emt 0:00:09]} Bb4 {[%emt 0:00:14]} 4. f3 {[%emt 0:00:08]} c5 {[%emt 0:00:05]} 5. d5 {[%emt 0:00:09]} b5 {[%emt 0:00:16]} 6. e4 {[%emt 0:00:10] E20: Nimzo-Indian: 4 g3 and 4 f3.} d6 $1 {[%emt 0:00:10][%mdl 4] outshines the older 6...bxc4.} 7. Bd2 {[%emt 0:05:22]} a6 {[%emt 0:08:51]} 8. cxb5 {[%emt 0:07:52]} (8. a4 $11) 8... exd5 $15 {[%emt 0:02:51]} 9. Nxd5 {[%emt 0:04:03]} Nxd5 {[%emt 0:00:29]} 10. exd5 {[%emt 0:00:10] [#]} O-O $146 {[%emt 0:02:14]} ({Predecessor:} 10... Bxd2+ 11. Qxd2 O-O 12. Bd3 Re8+ 13. Ne2 c4 14. Bc2 Qh4+ 15. g3 Qh3 16. O-O-O axb5 {1-0 (45) Tsvetkov,A (2395)-Berdayes Ason,D (2445) Chess.com INT 2020}) 11. Bxb4 {[%emt 0:09:45] [#] Threatens to win with Bc3.} Qh4+ {[%emt 0:09:37]} (11... Re8+ $1 $15 12. Ne2 cxb4) 12. g3 $11 {[%emt 0:00:36]} Re8+ {[%emt 0:00:18]} 13. Ne2 {[%emt 0:02:36]} Qxb4+ {[%emt 0:00:19]} 14. Qd2 {[%emt 0:00:13]} Qxb5 {[%emt 0:02:50]} 15. Kf2 {[%emt 0:01:52]} Nd7 {[%emt 0:08:43]} 16. Nc3 {[%emt 0:04:26]} Qb4 {[%emt 0:00:37]} 17. Rd1 {[%emt 0:01:57]} Nf6 {[%emt 0:02:04]} 18. b3 {[%emt 0:01:18]} Bd7 {[%emt 0:06:35]} 19. Bc4 {[%emt 0:08:34]} Qb6 {[%emt 0:18:36]} (19... Bb5 $5 {[%cal Rb5c4]}) 20. g4 {[%emt 0:07:40]} Bb5 {[%emt 0:01:56]} 21. Qd3 {[%emt 0:15:32]} Nd7 {[%emt 0:06:07]} 22. f4 {[%emt 0:02:05]} Nf6 {[%emt 0:04:25]} 23. Kf3 {[%emt 0:02:04]} Bd7 {[%emt 0:02:46]} 24. h3 {[%emt 0:00:56]} g6 {[%emt 0:01:30]} (24... h5 $5 {[%cal Rh5g4]} 25. g5 Nh7 $11) 25. Rhe1 {[%emt 0:01:31]} a5 {[%emt 0:00:37]} 26. Bb5 {[%emt 0:08:33]} Rxe1 {[%emt 0:04:59]} 27. Rxe1 {[%emt 0:00:07]} Bxb5 {[%emt 0:00:09]} 28. Qxb5 {[%emt 0:00:12]} Qxb5 {[%emt 0:00:29]} 29. Nxb5 {[%emt 0:00:04]} Nxd5 {[%emt 0:00:14]} 30. Nxd6 {[%emt 0:01:05]} Nb4 {[%emt 0:07:21] Weighted Error Value: White=0.10 (very precise) /Black=0.12 (very precise)} 1/2-1/2

[Event "New York Spring IM-C 2022"]
[Site "New York"]
[Date "2022.04.15"]
[Round "2.2"]
[White "Umayan, Vincent"]
[Black "Antova, Gabriela"]
[Result "0-1"]
[ECO "D10"]
[WhiteElo "2043"]
[BlackElo "2304"]
[Annotator "TA"]
[PlyCount "34"]
[EventDate "2022.04.14"]
[EventType "tourn"]
[EventCountry "USA"]
[SourceTitle "playchess.com"]
[Source "ChessBase"]
[SourceQuality "1"]
[TimeControl "5400+30"]

{[%evp 9,34,6,6,25,24,10,12,-112,-106,-110,-116,-129,-126,-139,-70,-193,-189,-179,-167,-332,-335,-323,-309,-432,-440,-411,-391]} 1. d4 {[%emt 0:00:20]} d5 {[%emt 0:00:06]} 2. c4 {[%emt 0:01:15]} c6 {[%emt 0:00:12][%cal Bc7c6,Bc6d5,Bd5d4][%mdl 32]} 3. cxd5 {[%emt 0:04:35]} cxd5 {[%emt 0:00:15]} 4. Nc3 {[%emt 0:00:12]} Nc6 {[%emt 0:01:07]} 5. Bf4 {[%emt 0:00:38]} e5 {[%emt 0:11:09]} 6. Bxe5 {[%emt 0:06:38] D10: Slav Defence: 3 cxd5 (without early Nf3) and 3 Nc3.} Nxe5 {[%emt 0:01:19]} 7. dxe5 {[%emt 0:00:12]} d4 {[%emt 0:00:56]} 8. Qa4+ {[%emt 0:06:20]} (8. Ne4 $11 {remains equal.}) 8... b5 $1 $17 {[%emt 0:02:21]} (8... Qd7 $2 9. Nb5 $18) 9. Nxb5 {[%emt 0:19:38] Nc7+ would kill now.} ({Not} 9. Qxb5+ $2 Bd7 10. Qd5 dxc3 11. bxc3 Qc8 $19) 9... Bd7 {[%emt 0:00:09] Hoping for ...a6.} 10. O-O-O {[%emt 0:03:43]} a6 $1 {[%emt 0:04:36]} 11. Qxd4 {[%emt 0:02:36] [#] And now Nc3 would win.} Bxb5 $146 {[%emt 0:11:47]} (11... axb5 $17 12. e3 Bc5 $1 {[%mdl 512]} 13. Qxd7+ (13. Qxc5 $2 Rc8 $19) 13... Qxd7 14. Rxd7 Kxd7 15. Bxb5+ Kc7) ({Predecessor:} 11... axb5 12. Kb1 Bf5+ 13. e4 Bxe4+ 14. Ka1 Qxd4 15. Rxd4 Bc6 16. Nf3 Bc5 17. Rd2 Rd8 18. Rxd8+ Kxd8 {0-1 (30) Jaeger,A (2061)-Brauer,C (2171) Berlin 2003}) 12. Nf3 {[%emt 0:04:00] Now White is beyond hope.} (12. Qxd8+ $15 Rxd8 13. Rxd8+ Kxd8 14. Nf3) 12... Rc8+ $19 {[%emt 0:08:06]} 13. Kb1 {[%emt 0:00:09] [#]} Qc7 $1 $40 {[%emt 0:03:24][%mdl 128] ( -> ...Qc2+). Black wants a kill. Chess con chili.} 14. Qe4 {[%emt 0:01:04] Prevents Qc2+.} (14. a3 {is a better defense.}) 14... Bc6 {[%emt 0:04:37]} 15. Qd3 {[%emt 0:07:00]} Ba4 {[%emt 0:02:11] aiming for ...Bc2+.} 16. b3 {[%emt 0:02:26]} Bb5 {[%emt 0:03:32]} 17. Qd2 {[%emt 0:02:02] [#]} Bb4 $1 {[%emt 0:01:15][%mdl 512] Weighted Error Value: White=0.53/Black=0.04 (flawless)} 0-1

[Event "New York Spring IM-C 2022"]
[Site "New York"]
[Date "2022.04.15"]
[Round "2.3"]
[White "Ngo, Bach"]
[Black "Dolgitser, Konstantin"]
[Result "1-0"]
[ECO "D45"]
[WhiteElo "2306"]
[BlackElo "2199"]
[Annotator "TA"]
[PlyCount "67"]
[EventDate "2022.04.14"]
[EventType "tourn"]
[EventCountry "USA"]
[SourceTitle "playchess.com"]
[Source "ChessBase"]
[SourceQuality "1"]
[TimeControl "5400+30"]

{[%evp 23,67,0,7,-3,10,11,13,15,20,-4,-4,-12,-32,-126,0,0,13,-111,0,0,0,6,0,0,112,121,125,138,120,120,429,446,471,480,529,538,523,519,511,504,800,759,822,820,955,933]} 1. d4 {[%emt 0:03:18]} d5 {[%emt 0:00:09]} 2. Nf3 {[%emt 0:00:09]} Nf6 {[%emt 0:00:14]} 3. c4 {[%emt 0:00:07]} c6 {[%emt 0:00:16]} 4. Nc3 {[%emt 0:00:15]} e6 {[%emt 0:00:18]} 5. e3 {[%emt 0:00:07]} Nbd7 {[%emt 0:00:24]} 6. Qc2 {[%emt 0:00:21]} Bd6 {[%emt 0:00:45]} 7. b3 {[%emt 0:00:30]} O-O {[%emt 0:01:06]} 8. Be2 {[%emt 0:00:15]} Qe7 {[%emt 0:01:09]} 9. O-O {[%emt 0:00:16]} b6 {[%emt 0:01:10]} 10. Bb2 {[%emt 0:06:51]} Bb7 {[%emt 0:00:46]} 11. Rad1 {[%emt 0:00:11]} Rad8 {[%emt 0:04:45]} 12. Rfe1 {[%emt 0:00:27]} Rfe8 {[%emt 0:00:20]} 13. g3 {[%emt 0:01:03] D45: Semi-Slav: 5 e3.} Bb4 {[%emt 0:05:07] now supersedes 13...c5.} 14. a3 {[%emt 0:00:33]} Bxc3 {[%emt 0:03:46]} (14... Bxa3 15. Bxa3 Qxa3 16. Ra1 $16) 15. Qxc3 {[%emt 0:00:39] The position is equal.} c5 {[%emt 0:00:30] [#]} 16. dxc5 $146 {[%emt 0:04:14]} ({Predecessor:} 16. Qc2 cxd4 17. exd4 Rc8 18. Nd2 Qd6 19. Bf3 Qb8 20. Qd3 Qa8 21. Be2 e5 22. dxe5 Nxe5 {1-0 (34) Caruana,F (2820)-Grischuk,A (2776) chess24.com INT 2021}) 16... Nxc5 {[%emt 0:04:00]} 17. Nd2 {[%emt 0:06:02]} e5 {[%emt 0:03:52]} 18. Nf3 {[%emt 0:10:37] Prevents d4.} (18. cxd5 $15 Rxd5 19. Qc2) 18... Ncd7 {[%emt 0:03:21]} ({And not} 18... dxc4 19. Qxc4 Bd5 20. Qb4 $15) ({Black should try} 18... Ng4 $1 $17 {Strongly threatening ...Ne4.} 19. Rf1 Ne4) 19. cxd5 $11 {[%emt 0:08:08]} Rc8 {[%emt 0:13:40]} 20. d6 {[%emt 0:09:14]} Rxc3 {[%emt 0:00:06]} (20... Qe6 $1 $17 21. Qb4 (21. Ng5 $2 Qf5 $19) 21... a5) 21. dxe7 {[%emt 0:00:10]} Rxb3 {[%emt 0:00:06]} 22. Nxe5 {[%emt 0:01:56][%cal Bf3e5,Be5c4,Bc4d6,Bd6b5][%mdl 32]} Rxe7 {[%emt 0:07:18]} 23. Nc4 {[%emt 0:06:58]} Bd5 {[%emt 0:08:05]} (23... Ba6 $11 {remains equal.}) 24. Rd2 $1 $16 {[%emt 0:01:56]} Be6 {[%emt 0:03:03] [#]} 25. Nd6 {[%emt 0:01:29] Inhibits Ne4.} Nc5 {[%emt 0:03:55] [#]} 26. Nb5 $1 {[%emt 0:02:14]} Na4 $2 {[%emt 0:05:00][%mdl 8192] A mistake that costs the game.} (26... Nce4 $16 {is a better chance.} 27. Rc2 Bf5) 27. Rd8+ $18 {[%emt 0:01:49] White is clearly winning.} Ne8 {[%emt 0:00:53]} 28. Be5 {[%emt 0:00:45] Hoping for Bd6. A strong pair of Bishops.} f6 {[%emt 0:10:14]} 29. Bd6 {[%emt 0:00:35]} Kf7 {[%emt 0:00:02]} 30. Bxe7 {[%emt 0:00:25]} Kxe7 {[%emt 0:00:02]} 31. Ra8 {[%emt 0:01:03]} a5 {[%emt 0:00:01]} (31... Nc3 $142 32. Rxa7+ Kf8 33. Nxc3 Rxc3) 32. Nd4 {[%emt 0:00:13]} Nc7 {[%emt 0:00:36]} 33. Ra7 {[%emt 0:00:10]} Rc3 {[%emt 0:00:03]} 34. Nb5 {[%emt 0:00:26] Weighted Error Value: White=0.21 (precise) /Black=0.70} 1-0